bitfinex/quotes_SOLUSD_20241215
["timestamp","ask_amount","ask_price","bid_price","bid_amount"]
[1734306380934,5.9006,224.07,223.93,0.12549]
[1734306381132,20.0,224.04,223.92,1.78493773]
[1734306381337,20.0,224.03,223.88,10.26250754]
[1734306381537,20.0,223.99,223.88,10.26250754]
[1734306381745,5.9006,223.98,223.88,10.26250754]
[1734306381978,5.9006,223.98,223.89,0.12549]
[1734306382129,5.9006,223.98,223.88,10.26250754]
[1734306382931,6.6973,223.97,223.88,10.26250754]
[1734306384147,5.9006,223.98,223.88,10.26250754]
[1734306384353,5.9006,223.98,223.89,0.12549]
[1734306386042,5.9006,223.98,223.89,24.027864]
[1734306387059,5.9006,223.98,223.89,0.12549]
[1734306387272,12.5977,223.98,223.88,10.26250754]
[1734306387434,12.5977,223.98,223.88,0.5474998]
[1734306387636,20.0,223.95,223.88,0.5474998]
[1734306388145,20.0,223.95,223.89,0.12549]
[1734306389779,5.9006,223.98,223.9,0.12549]
[1734306391572,5.9006,223.98,223.91,0.12549]
[1734306392063,5.9006,223.98,223.9,0.25098]
[1734306392267,20.0,224.02,223.92,23.902374]
[1734306392453,5.9006,224.05,223.94,0.12549]
[1734306392655,5.9006,224.05,223.94,1.91087456]
[1734306392864,5.9006,224.05,223.96,0.12549]
[1734306393038,5.9006,224.05,223.96,0.25098]
[1734306393236,5.9006,224.05,223.98,0.12549]
[1734306393742,5.9006,224.05,224.0,0.12549]
[1734306393953,5.9006,224.05,223.97,0.12549]
[1734306394162,5.9006,224.05,223.99,0.12549]
[1734306394662,5.9006,224.05,224.0,1.78508827]
[1734306394865,5.9006,224.05,223.99,0.12549]
[1734306394866,5.9006,224.05,224.01,1.78508827]
[1734306395074,12.5956,224.05,223.95,0.12549]
[1734306395573,12.5956,224.05,223.96,1.78523508]
[1734306395759,12.5956,224.05,223.91,0.25098]
[1734306395968,12.5956,224.05,223.93,0.12549]
[1734306396175,12.5956,224.05,223.94,1.78544383]
[1734306396351,12.5956,224.05,223.96,0.12549]
[1734306396553,12.5956,224.05,223.97,1.78544383]
[1734306396867,12.5956,224.05,223.98,1.78544383]
[1734306397066,12.5956,224.05,223.96,0.12549]
[1734306397274,12.5956,224.05,223.93,25.68767057]
[1734306397473,12.5956,224.05,223.93,23.902374]
[1734306397771,12.5956,224.05,223.95,0.12549]
[1734306398955,13.39,224.11,223.97,24.027864]
[1734306398956,6.6934,224.1,223.97,24.027864]
[1734306399155,6.6934,224.1,223.99,23.902374]
[1734306399376,6.6934,224.1,224.01,0.12549]
[1734306400260,6.6934,224.1,224.0,0.12549]
[1734306400552,6.6934,224.1,224.0,1.91029474]
[1734306400877,6.6934,224.1,224.01,1.78480852]
[1734306401057,5.9006,224.16,224.02,23.902374]
[1734306401376,6.6919,224.15,224.02,23.902374]
[1734306401958,6.6919,224.15,223.99,24.027864]
[1734306402152,6.6919,224.15,224.02,0.12549]
[1734306402469,5.9006,224.16,224.02,0.12549]
[1734306402470,17.845373,224.17,224.04,24.027864]
[1734306402678,17.845373,224.17,224.06,0.12549]
[1734306402850,20.58382362,224.17,224.06,1.90999376]
[1734306403052,20.58382362,224.17,224.06,0.12549]
[1734306403247,20.58382362,224.17,224.06,1.90999376]
[1734306403455,6.6909,224.19,224.08,0.12549]
[1734306403680,5.9006,224.21,224.08,25.68687776]
[1734306403950,19.2796,224.21,224.1,0.12549]
[1734306404382,19.2796,224.21,224.09,0.12549]
[1734306404587,19.2796,224.21,224.09,1.90952839]
[1734306404874,19.2796,224.21,224.09,0.12549]
[1734306405556,13.379,224.21,224.09,0.12549]
[1734306405772,13.379,224.21,224.09,1.79049]
[1734306405958,6.6897,224.23,224.11,0.12549]
[1734306406160,22.73459092,224.23,224.11,0.12549]
[1734306406562,6.6897,224.23,224.11,0.12549]
[1734306410187,17.837634,224.25,224.14,0.12549]
[1734306410392,101.27983141,224.39,224.18,0.12549]
[1734306410393,6.6873,224.31,224.18,0.12549]
[1734306410593,6.6873,224.31,224.19,0.12549]
[1734306410761,6.6873,224.31,224.21,0.12549]
[1734306411162,6.6873,224.31,224.21,23.902374]
[1734306411362,1.783132,224.33,224.21,23.902374]
[1734306411762,6.6861,224.35,224.21,23.902374]
[1734306412070,20.0,224.31,224.21,23.902374]
[1734306412671,6.6861,224.34,224.21,29.946374]
[1734306413171,2.6109087,224.38,224.25,24.027864]
[1734306414165,8.82275135,224.43,224.25,42.7328845]
[1734306414358,6.6837,224.43,224.3,1.6298]
[1734306415585,20.0,224.4,224.3,1.6298]
[1734306416300,6.6847,224.39,224.25,23.776884]
[1734306416600,20.0,224.36,224.24,1.6625]
[1734306417310,0.12549,224.35,224.24,1.6625]
[1734306418379,6.6862,224.34,224.24,1.6625]
[1734306418772,20.0,224.31,224.24,1.6625]
[1734306419674,19.0,224.31,224.24,1.6625]
[1734306420071,31.197305,224.39,224.24,1.6625]
[1734306420275,0.12549,224.37,224.24,1.6625]
[1734306421177,5.12549,224.37,224.24,1.6625]
[1734306421374,0.25098,224.35,224.21,6.044]
[1734306421574,0.12549,224.35,224.21,6.044]
[1734306421987,20.0,224.33,224.21,6.044]
[1734306422179,20.0,224.35,224.22,0.12549]
[1734306422795,20.0,224.35,224.22,23.902374]
[1734306423315,2.63016753,224.41,224.26,42.6073945]
[1734306423474,2.63016753,224.41,224.28,23.902374]
[1734306423677,2.63016753,224.41,224.28,0.12549]
[1734306424001,6.684,224.42,224.3,23.902374]
[1734306424997,6.684,224.42,224.29,6.3328]
[1734306425310,20.0,224.39,224.29,6.3328]
[1734306426718,20.0,224.38,224.29,6.3328]
[1734306426883,26.685,224.39,224.25,1.6379]
[1734306426884,20.0,224.36,224.25,1.6379]
[1734306428194,26.6858,224.36,224.25,1.6379]
[1734306431493,6.6846,224.4,224.26,23.902374]
[1734306431983,20.0,224.37,224.26,23.902374]
[1734306432187,6.6846,224.4,224.26,23.902374]
[1734306433188,2.69076487,224.43,224.26,42.6073945]
[1734306433388,6.6834,224.44,224.31,23.776884]
[1734306434502,2.0242793,224.47,224.33,23.776884]
[1734306434813,2.63508402,224.47,224.33,23.776884]
[1734306436118,2.63508402,224.47,224.34,6.3867]
[1734306436690,17.82001,224.5,224.35,23.902374]
[1734306437022,4.05237896,224.55,224.37,23.902374]
[1734306437023,6.6811,224.52,224.37,23.902374]
[1734306438432,0.12549,224.51,224.37,23.902374]
[1734306440190,20.0,224.49,224.37,23.902374]
[1734306440803,20.0,224.49,224.41,23.776884]
[1734306441313,6.6811,224.52,224.41,23.776884]
[1734306442120,20.0,224.53,224.43,6.4603]
[1734306442327,20.0,224.53,224.44,23.776884]
[1734306442709,20.0,224.53,224.45,1.6294]
[1734306442927,6.6787,224.6,224.46,23.902374]
[1734306443100,6.6787,224.6,224.46,36.25978342]
[1734306443296,6.6774,224.64,224.48,35.59171626]
[1734306444025,0.5474998,224.65,224.59,0.12549]
[1734306444233,0.5474998,224.65,224.61,23.902374]
[1734306444405,6.6737,224.77,224.61,23.902374]
[1734306444603,6.6737,224.77,224.62,0.12549]
[1734306444804,15.67082949,224.81,224.65,23.902374]
[1734306445107,16.696519,224.83,224.69,23.902374]
[1734306445295,6.671,224.86,224.69,23.902374]
[1734306445496,6.671,224.86,224.69,23.776884]
[1734306445497,0.12549,224.85,224.69,23.776884]
[1734306445812,2.61659364,224.84,224.68,6.3658]
[1734306446013,6.6717,224.83,224.68,6.3658]
[1734306446198,6.6717,224.83,224.69,23.776884]
[1734306446708,20.0,224.8,224.69,23.776884]
[1734306447526,20.0,224.8,224.68,6.3658]
[1734306447527,0.12549,224.78,224.68,6.3658]
[1734306448498,20.0,224.76,224.68,6.3658]
[1734306448797,6.6734,224.77,224.66,1.6446]
[1734306448798,0.12549,224.73,224.66,1.6446]
[1734306449002,0.25098,224.73,224.61,6.4706]
[1734306449528,44.027864,224.73,224.61,6.4706]
[1734306450027,20.0,224.69,224.61,6.4706]
[1734306450395,0.12549,224.68,224.61,6.4706]
[1734306450725,0.25098,224.68,224.59,1.6533]
[1734306451024,20.0,224.69,224.59,1.6533]
[1734306452628,6.6761,224.69,224.59,1.6533]
[1734306453304,20.0,224.66,224.59,1.6533]
[1734306454109,6.6761,224.69,224.59,1.6533]
[1734306456143,20.0,224.64,224.59,1.6533]
[1734306456529,0.12549,224.63,224.59,1.6533]
[1734306457720,6.6779,224.62,224.59,1.6533]
[1734306458781,6.6755,224.7,224.59,1.6533]
[1734306459746,0.12549,224.67,224.59,1.6533]
[1734306459930,0.25098,224.67,224.59,1.6533]
[1734306460128,20.0,224.65,224.59,1.6533]
[1734306460337,0.12549,224.67,224.59,1.6533]
[1734306460539,23.776884,224.7,224.6,18.66567866]
[1734306460749,2.61659364,224.84,224.65,1.6129]
[1734306461042,6.6725,224.8,224.66,23.776884]
[1734306463043,13.9127756,224.87,224.66,23.776884]
[1734306463249,20.12549,224.83,224.67,0.12549]
[1734306463448,6.6708,224.86,224.71,23.776884]
[1734306464061,6.6708,224.86,224.7,6.2]
[1734306464263,0.12549,224.85,224.7,6.2]
[1734306464461,6.6714,224.84,224.7,6.2]
[1734306464633,20.0,224.81,224.7,6.2]
[1734306465327,6.6714,224.84,224.7,6.2]
[1734306465661,6.672,224.82,224.7,6.2]
[1734306466369,20.12549,224.78,224.7,6.2]
[1734306466951,0.25098,224.78,224.7,6.2]
[1734306467169,20.25098,224.78,224.65,1.6129]
[1734306467537,0.12549,224.76,224.65,1.6129]
[1734306467865,20.0,224.74,224.65,1.6129]
[1734306468839,6.6734,224.77,224.66,23.776884]
[1734306469878,2.03149368,224.85,224.66,23.776884]
[1734306470178,6.6714,224.84,224.66,23.776884]
[1734306470776,0.12549,224.81,224.66,23.776884]
[1734306470947,6.6725,224.8,224.66,23.776884]
[1734306473260,6.6714,224.84,224.67,0.12549]
[1734306474871,6.6725,224.8,224.66,23.776884]
[1734306478262,6.6714,224.84,224.69,24.027864]
[1734306479950,0.12549,224.83,224.69,23.776884]
[1734306480377,0.12549,224.83,224.68,8.1496]
[1734306480378,20.0,224.81,224.68,8.1496]
[1734306481579,6.6714,224.84,224.68,8.1496]
[1734306481879,6.6714,224.84,224.68,7.6496]
[1734306482559,6.6714,224.84,224.69,23.776884]
[1734306483884,13.3422,224.85,224.69,23.776884]
[1734306483885,0.5227756,224.87,224.76,11.66484971]
[1734306484053,0.5227756,224.87,224.78,6.5679]
[1734306484264,0.5227756,224.87,224.79,23.776884]
[1734306484882,0.5227756,224.87,224.82,23.776884]
[1734306486186,0.5227756,224.87,224.83,6.5651]
[1734306486378,0.5227756,224.87,224.84,23.776884]
[1734306486580,0.5227756,224.87,224.83,6.5651]
[1734306486779,0.5227756,224.87,224.79,23.776884]
[1734306486978,0.5227756,224.87,224.78,1.77844223]
[1734306486979,6.6708,224.86,224.77,6.5651]
[1734306487495,0.5227756,224.87,224.77,6.5651]
[1734306488200,0.5227756,224.87,224.78,23.776884]
[1734306488890,0.5227756,224.87,224.77,6.5651]
[1734306490089,0.5227756,224.87,224.78,23.776884]
[1734306490993,7.1933756,224.87,224.77,6.5651]
[1734306492180,20.0,224.84,224.77,6.5651]
[1734306492382,20.0,224.84,224.75,1.5497]
[1734306492970,0.25098,224.86,224.75,1.5497]
[1734306493173,6.6717,224.83,224.75,1.5497]
[1734306496477,6.6717,224.83,224.72,6.0211]
[1734306502009,6.6723,224.81,224.72,6.0211]
[1734306502283,20.0169,224.81,224.69,1.5885]
[1734306503512,6.6734,224.77,224.69,1.5885]
[1734306504804,20.0,224.78,224.69,1.5885]
[1734306505609,26.6734,224.78,224.69,1.5885]
[1734306505990,6.6734,224.78,224.69,1.5885]
[1734306507610,13.3446,224.81,224.69,1.5885]
[1734306510123,13.3446,224.81,224.67,6.3774]
[1734306512422,20.0,224.76,224.64,1.6561]
[1734306513426,6.674,224.75,224.64,1.6561]
[1734306513636,6.674,224.75,224.62,6.575]
[1734306513923,20.0221,224.75,224.62,6.575]
[1734306514486,6.674,224.75,224.62,6.575]
[1734306515130,6.674,224.75,224.63,23.776884]
[1734306515497,6.6719,224.83,224.69,23.776884]
[1734306515824,6.6719,224.83,224.71,23.776884]
[1734306516210,6.6719,224.83,224.73,30.032684]
[1734306517529,7.1933756,224.87,224.73,30.032684]
[1734306517826,7.1933756,224.87,224.75,23.776884]
[1734306517827,0.5227756,224.87,224.75,23.776884]
[1734306518128,0.5227756,224.87,224.75,24.44399979]
[1734306518587,0.5227756,224.87,224.77,23.776884]
[1734306518920,0.5227756,224.87,224.73,6.2558]
[1734306518921,0.5227756,224.87,224.79,23.776884]
[1734306519225,6.5107,225.01,224.86,24.027864]
[1734306519226,7.6694,225.0,224.86,24.027864]
[1734306519418,1.0,225.0,224.88,23.776884]
[1734306519622,1.0,225.0,224.92,8.1625]
[1734306519820,1.0,225.0,224.96,23.776884]
[1734306519990,0.5,225.0,224.96,23.776884]
[1734306520321,0.5,225.0,224.93,23.776884]
[1734306520523,0.5,225.0,224.93,24.44356701]
[1734306522290,0.5,225.0,224.93,23.776884]
[1734306522719,0.5,225.0,224.93,24.44355511]
[1734306522911,0.5,225.0,224.94,0.12549]
[1734306523118,0.5,225.0,224.96,23.902374]
[1734306523300,0.5,225.0,224.97,0.66648136]
[1734306523498,0.5,225.0,224.98,23.776884]
[1734306524390,0.5,225.0,224.94,18.61710856]
[1734306524391,0.5,225.0,224.96,23.776884]
[1734306524599,0.5,225.0,224.98,23.776884]
[1734306525522,0.5,225.0,224.96,23.776884]
[1734306525703,0.5,225.0,224.97,0.66652977]
[1734306525899,0.5,225.0,224.98,23.776884]
[1734306526105,0.5,225.0,224.96,23.776884]
[1734306526299,0.5,225.0,224.98,23.776884]
[1734306526530,0.5,225.0,224.96,23.776884]
[1734306528129,0.5,225.0,224.98,23.776884]
[1734306528495,0.5,225.0,224.96,23.776884]
[1734306531120,0.5,225.0,224.92,26.77960856]
[1734306531121,0.5,225.0,224.94,23.776884]
[1734306531320,0.5,225.0,224.92,8.1625]
[1734306531900,0.5,225.0,224.92,6.6103]
[1734306532139,0.5,225.0,224.88,0.66666445]
[1734306532739,0.5,225.0,224.88,19.28377301]
[1734306533199,0.5,225.0,224.9,18.61710856]
[1734306533401,0.5,225.0,224.92,23.776884]
[1734306533613,0.5,225.0,224.93,0.66668709]
[1734306534448,0.5,225.0,224.94,23.776884]
[1734306534726,0.5,225.0,224.96,23.776884]
[1734306536094,0.5,225.0,224.92,0.66661304]
[1734306536302,0.5,225.0,224.93,23.776884]
[1734306536520,0.5,225.0,224.91,23.776884]
[1734306536902,7.1668,225.0,224.87,6.1991]
[1734306537100,7.1668,225.0,224.87,6.86593068]
[1734306538135,7.1668,225.0,224.88,23.776884]
[1734306538307,20.0,224.97,224.82,6.2874]
[1734306539216,20.0,224.97,224.83,0.79240007]
[1734306539422,20.0,224.97,224.82,6.2874]
[1734306539628,20.0,224.97,224.83,23.902374]
[1734306540032,20.0,224.97,224.83,23.776884]
[1734306540334,6.6678,224.96,224.8,1.6093]
[1734306540540,20.0,224.93,224.77,6.2874]
[1734306540708,20.0,224.93,224.77,6.95447893]
[1734306541411,6.669,224.92,224.77,6.95447893]
[1734306541726,6.669,224.92,224.78,23.776884]
[1734306542117,6.669,224.92,224.77,6.95447893]
[1734306542118,8.2986,224.92,224.77,6.95447893]
[1734306542307,8.2986,224.92,224.71,6.80563775]
[1734306542308,20.0,224.89,224.71,6.80563775]
[1734306543046,20.0,224.89,224.67,2.19152937]
[1734306543531,20.0,224.85,224.67,2.19152937]
[1734306543925,20.0,224.85,224.68,0.12549]
[1734306544103,20.0,224.85,224.69,0.66734003]
[1734306544530,6.6714,224.84,224.7,23.902374]
[1734306544902,6.6714,224.84,224.72,23.902374]
[1734306545124,6.6714,224.84,224.74,23.776884]
[1734306545938,13.3404,224.88,224.74,23.776884]
[1734306547033,20.0106,224.88,224.74,23.776884]
[1734306549836,6.6714,224.84,224.74,23.776884]
[1734306550343,6.6714,224.84,224.7,0.66723759]
[1734306550517,20.0,224.81,224.68,0.66731259]
[1734306550720,20.0,224.81,224.66,6.2066]
[1734306550721,26.6269,224.81,224.66,6.2066]
[1734306550940,1.6173,224.8,224.61,8.81363385]
[1734306551145,1.6173,224.8,224.62,0.12549]
[1734306551315,1.6173,224.8,224.63,0.66748614]
[1734306551512,20.25098,224.79,224.6,0.66749595]
[1734306551719,0.12549,224.77,224.54,0.66760758]
[1734306551947,20.0,224.73,224.54,0.66760758]
[1734306552738,20.0,224.73,224.56,0.12549]
[1734306552919,20.0,224.73,224.57,0.66762304]
[1734306553250,20.0,224.73,224.58,0.12549]
[1734306553426,20.0,224.73,224.6,0.12549]
[1734306553742,33.46222,224.76,224.6,0.12549]
[1734306554133,33.46222,224.76,224.6,24.027864]
[1734306554344,6.6737,224.76,224.62,24.027864]
[1734306554530,6.6737,224.76,224.64,23.902374]
[1734306556724,8.29,224.8,224.67,0.12549]
[1734306556929,1.6173,224.8,224.69,0.25098]
[1734306557241,1.6173,224.8,224.71,23.776884]
[1734306557546,1.6173,224.8,224.73,23.776884]
[1734306560146,6.6728,224.79,224.69,0.66730833]
[1734306560352,6.6728,224.79,224.65,0.66733563]
[1734306561134,6.6728,224.79,224.66,0.12549]
[1734306561548,6.6728,224.79,224.67,0.12549]
[1734306563339,6.6728,224.79,224.68,23.776884]
[1734306563559,6.6728,224.79,224.61,0.66741921]
[1734306563746,20.0,224.76,224.61,0.66741921]
[1734306563945,20.0,224.76,224.61,2.44679047]
[1734306564146,20.0,224.76,224.61,0.66741921]
[1734306564359,20.0,224.76,224.62,0.12549]
[1734306564557,6.6728,224.79,224.63,0.66749652]
[1734306564764,6.6728,224.79,224.6,14.24150143]
[1734306564765,20.0,224.76,224.6,14.24150143]
[1734306564944,20.0,224.76,224.61,0.12549]
[1734306565146,20.0,224.76,224.61,0.91859077]
[1734306565545,20.0185,224.79,224.61,0.91859077]
[1734306566168,20.0185,224.79,224.63,0.25098]
[1734306566380,20.0185,224.79,224.64,23.776884]
[1734306566742,20.0,224.76,224.64,23.776884]
[1734306566976,26.674,224.76,224.63,0.12549]
[1734306568256,6.674,224.76,224.65,0.12549]
[1734306568566,6.674,224.76,224.66,23.776884]
[1734306568764,8.29,224.8,224.69,0.12549]
[1734306568970,8.29,224.8,224.7,23.776884]
[1734306569783,6.6714,224.84,224.71,0.91832365]
[1734306569969,6.6714,224.84,224.73,0.12549]
[1734306570174,6.6714,224.84,224.74,23.776884]
[1734306570667,1.5198,224.85,224.76,23.776884]
[1734306571291,1.5198,224.85,224.77,0.6671935]
[1734306571861,8.191,224.85,224.73,23.902374]
[1734306573563,8.191,224.85,224.74,0.66725076]
[1734306573859,1.5587,224.9,224.76,0.12549]
[1734306574100,1.5587,224.9,224.77,23.776884]
[1734306574393,1.5587,224.9,224.78,0.66712565]
[1734306574895,1.5587,224.9,224.76,23.902374]
[1734306575091,1.5587,224.9,224.78,23.776884]
[1734306575266,20.0,224.88,224.78,23.776884]
[1734306577163,20.0,224.88,224.8,23.776884]
[1734306577765,8.2284,224.9,224.8,23.776884]
[1734306579864,22.744641,224.94,224.82,23.776884]
[1734306580088,6.6686,224.94,224.84,23.776884]
[1734306580595,6.6686,224.94,224.85,0.66693081]
[1734306581304,6.6686,224.94,224.81,0.79239963]
[1734306581599,6.6686,224.94,224.82,23.776884]
[1734306583570,20.0,224.91,224.76,23.776884]
[1734306583769,20.0,224.91,224.71,0.66714889]
[1734306583988,20.0,224.91,224.71,2.44575372]
[1734306584701,20.0,224.87,224.71,2.44575372]
[1734306585199,20.0,224.87,224.71,14.09992701]
[1734306585406,20.0,224.87,224.72,0.12549]
[1734306585570,20.0,224.87,224.71,14.09992701]
[1734306585769,1.93298835,224.89,224.71,14.09992701]
[1734306585975,6.6708,224.86,224.72,0.12549]
[1734306586878,26.6868,224.94,224.72,0.12549]
[1734306586879,20.0,224.87,224.74,0.12549]
[1734306587193,20.0,224.87,224.77,0.25098]
[1734306587368,20.0,224.87,224.78,23.776884]
[1734306587568,6.6696,224.9,224.78,23.776884]
[1734306588773,6.6696,224.9,224.79,0.91805998]
[1734306588974,20.0,224.91,224.81,0.12549]
[1734306589168,6.6686,224.94,224.83,0.12549]
[1734306589387,6.6686,224.94,224.84,23.776884]
[1734306590391,1.6372,224.95,224.86,23.776884]
[1734306590613,6.6673,224.98,224.86,23.776884]
[1734306590773,13.3359,224.98,224.86,23.776884]
[1734306592476,4.12350371,225.0,224.86,23.776884]
[1734306592477,4.12350371,225.0,224.87,0.9178298]
[1734306592677,2.1563,225.0,224.89,0.12549]
[1734306592903,2.1563,225.0,224.9,23.776884]
[1734306593419,0.5,225.0,224.9,23.776884]
[1734306594110,0.5,225.0,224.83,0.66676596]
[1734306594111,6.6669,224.99,224.83,0.66676596]
[1734306594282,6.6669,224.99,224.84,0.8]
[1734306594484,20.0,224.96,224.84,0.8]
[1734306594889,20.0,224.96,224.84,1.46697341]
[1734306595204,20.0,224.96,224.84,0.8]
[1734306595378,20.0,224.96,224.82,0.66688995]
[1734306595575,20.0,224.96,224.83,23.776884]
[1734306596380,6.6681,224.95,224.83,23.776884]
[1734306597113,6.6681,224.95,224.81,8.1355]
[1734306597323,6.6681,224.95,224.82,0.79246116]
[1734306597628,20.0,224.96,224.84,0.12549]
[1734306597845,6.6671,224.99,224.84,0.79234869]
[1734306598200,6.6671,224.99,224.85,23.902374]
[1734306598523,6.6671,224.99,224.87,23.776884]
[1734306598897,0.5,225.0,224.89,23.776884]
[1734306599110,0.5,225.0,224.9,0.66675799]
[1734306599821,0.5,225.0,224.91,23.902374]
[1734306600007,0.5,225.0,224.92,8.5906669]
[1734306600211,0.5,225.0,224.92,7.924]
[1734306600432,0.5,225.0,224.93,23.776884]
[1734306601485,0.5,225.0,224.95,23.776884]
[1734306602108,0.5,225.0,224.96,0.66659837]
[1734306602498,0.5,225.0,224.97,23.776884]
[1734306602703,0.5,225.0,224.99,23.776884]
[1734306605366,0.5,225.0,224.92,7.924]
[1734306605664,0.5,225.0,224.93,0.07]
[1734306606523,0.5,225.0,224.93,23.846884]
[1734306608826,0.5,225.0,224.94,0.66665806]
[1734306609151,0.5,225.0,224.95,23.776884]
[1734306609325,0.5,225.0,224.97,23.776884]
[1734306610264,0.5,225.0,224.94,0.8]
[1734306610469,0.5,225.0,224.87,6.4591]
[1734306610755,0.5,225.0,224.89,0.8]
[1734306611634,0.5,225.0,224.9,24.44362792]
[1734306611952,0.5,225.0,224.91,0.8]
[1734306613352,0.5,225.0,224.92,24.44361267]
[1734306613739,0.5,225.0,224.93,0.12549]
[1734306614040,0.5,225.0,224.95,23.776884]
[1734306614239,0.5,225.0,224.97,23.776884]
[1734306614445,0.5,225.0,224.98,0.66649485]
[1734306615030,0.5,225.0,224.91,0.8]
[1734306615031,0.5,225.0,224.94,0.66652466]
[1734306615458,0.5,225.0,224.97,23.776884]
[1734306615643,0.5,225.0,224.98,0.66650572]
[1734306615959,0.5,225.0,224.97,23.776884]
[1734306616330,0.5,225.0,224.92,0.66651501]
[1734306616532,0.5,225.0,224.93,43.902374]
[1734306616929,0.5,225.0,224.95,23.776884]
[1734306617340,0.5,225.0,224.96,0.66656318]
[1734306617540,0.5,225.0,224.97,23.776884]
[1734306617729,0.5,225.0,224.98,0.66649431]
[1734306618659,0.5,225.0,224.94,20.66649511]
[1734306618855,0.5,225.0,224.95,23.776884]
[1734306619363,0.5,225.0,224.91,14.02337329]
[1734306619364,0.5,225.0,224.91,2.3692]
[1734306619533,0.5,225.0,224.92,0.66665322]
[1734306621251,0.5,225.0,224.93,23.776884]
[1734306621955,0.5,225.0,224.94,0.12549]
[1734306622767,0.5,225.0,224.93,23.776884]
[1734306624264,0.5,225.0,224.91,23.776884]
[1734306625765,0.5,225.0,224.93,23.776884]
[1734306625949,0.5,225.0,224.95,23.776884]
[1734306626472,0.5,225.0,224.91,0.12549]
[1734306626776,0.5,225.0,224.92,23.776884]
[1734306627441,0.5,225.0,224.94,23.776884]
[1734306627977,0.5,225.0,224.9,20.0]
[1734306628150,0.5,225.0,224.91,23.776884]
[1734306628340,0.5,225.0,224.9,20.0]
[1734306628541,0.5,225.0,224.9,20.66674166]
[1734306630072,0.5,225.0,224.91,23.776884]
[1734306630253,0.5,225.0,224.93,23.776884]
[1734306631099,0.5,225.0,224.95,23.776884]
[1734306631247,0.5,225.0,224.97,23.776884]
[1734306633565,0.5,225.0,224.92,23.902374]
[1734306633753,0.5,225.0,224.94,23.776884]
[1734306634470,0.5,225.0,224.91,13.96611777]
[1734306635063,0.5,225.0,224.92,0.66673711]
[1734306636558,0.5,225.0,224.93,23.776884]
[1734306636878,0.5,225.0,224.95,23.776884]
[1734306637745,0.5,225.0,224.96,0.66657247]
[1734306638161,0.5,225.0,224.97,23.776884]
[1734306638846,0.5,225.0,224.98,0.66652478]
[1734306639064,0.5,225.0,224.99,23.776884]
[1734306642072,0.5,225.0,224.98,0.66652478]
[1734306642073,0.5,225.0,224.95,20.0]
[1734306643074,0.5,225.0,224.96,0.66659295]
[1734306643272,0.5,225.0,224.96,2.44360951]
[1734306643575,0.5,225.0,224.97,23.776884]
[1734306643973,0.5,225.0,224.99,43.776884]
[1734306644164,0.5,225.0,224.99,45.55390399]
[1734306646170,0.5,225.0,224.99,45.55380241]
[1734306646876,0.5,225.0,224.99,45.80478241]
[1734306647371,0.5,225.0,224.99,45.80472939]
[1734306649074,0.5,225.0,224.99,21.77686539]
[1734306649273,0.5,225.0,224.99,20.0]
[1734306649472,0.5,225.0,224.99,21.77699799]
[1734306650058,0.5,225.0,224.99,20.0]
[1734306650479,0.5,225.0,224.99,43.776884]
[1734306655954,0.5,225.0,224.99,45.5539162]
[1734306656375,0.5,225.0,224.99,45.8048962]